[Event "Live Chess"]
[Site "Chess.com"]
[Date "2021.02.28"]
[Round "-"]
[White "Wallace, Mike"]
[Black "McShane, James"]
[Result "0-1"]
[BlackElo "1341"]
[CurrentPosition "8/8/8/6p1/4n3/pk6/8/2K3q1 w - -"]
[ECO "A45"]
[ECOUrl "https://www.chess.com/openings/Indian-Game"]
[EndDate "2021.02.28"]
[EndTime "15:02:26"]
[Link "https://www.chess.com/live/game/8260458895"]
[StartTime "14:11:44"]
[Termination "Ubermunch won by checkmate"]
[TimeControl "1500+10"]
[Timezone "UTC"]
[UTCDate "2021.02.28"]
[UTCTime "14:11:44"]
[WhiteElo "947"]

1. d4 { [%clk 0:25:10] } 1... Nf6 { [%clk 0:25:10] } 2. e3 { [%clk 0:25:06.6] } 2... g6 { [%clk 0:25:15.8] } 3. Nf3 { [%clk 0:25:04.3] } 3... Bg7 { [%clk 0:25:22.2] } 4. Ng5 { [%clk 0:24:18.6] } 4... O-O { [%clk 0:25:17.7] } 5. Be2 { [%clk 0:24:22.7] } 5... d6 { [%clk 0:25:12.5] } 6. Nd2 { [%clk 0:24:22.3] } 6... e5 { [%clk 0:25:16] } 7. dxe5 { [%clk 0:23:11.2] } 7... dxe5 { [%clk 0:25:25.9] } 8. O-O { [%clk 0:22:39.8] } 8... Nc6 { [%clk 0:24:33.9] } 9. c3 { [%clk 0:22:39.6] } 9... h6 { [%clk 0:24:27.2] } 10. Ngf3 { [%clk 0:22:21.8] } 10... e4 { [%clk 0:24:23.5] } 11. Nd4 { [%clk 0:21:47.3] } 11... Re8 { [%clk 0:23:52.1] } 12. f3 { [%clk 0:21:31] } 12... exf3 { [%clk 0:23:48.6] } 13. N2xf3 { [%clk 0:21:12.1] } 13... Bd7 { [%clk 0:21:33.7] } 14. Qb3 { [%clk 0:20:39.7] } 14... Na5 { [%clk 0:21:22.5] } 15. Qc2 { [%clk 0:20:26] } 15... c5 { [%clk 0:21:11.2] } 16. b4 { [%clk 0:18:23.8] } 16... cxd4 { [%clk 0:20:53] } 17. bxa5 { [%clk 0:18:27.1] } 17... dxe3 { [%clk 0:20:59.2] } 18. c4 { [%clk 0:16:58.8] } 18... Qxa5 { [%clk 0:20:41.3] } 19. Rb1 { [%clk 0:16:04.1] } 19... Bf5 { [%clk 0:19:40.8] } 20. Bd3 { [%clk 0:15:23.7] } 20... Bxd3 { [%clk 0:19:37.7] } 21. Qxd3 { [%clk 0:15:28.1] } 21... e2 { [%clk 0:19:23] } 22. Re1 { [%clk 0:15:30.3] } 22... Qxa2 { [%clk 0:19:17.7] } 23. Rb2 { [%clk 0:15:19.4] } 23... Qa5 { [%clk 0:13:24.8] } 24. Rbxe2 { [%clk 0:13:46.5] } 24... Rxe2 { [%clk 0:13:20.5] } 25. Qxe2 { [%clk 0:13:39.6] } 25... Re8 { [%clk 0:13:18.3] } 26. Qd3 { [%clk 0:12:55.8] } 26... Rxe1+ { [%clk 0:13:17.1] } 27. Nxe1 { [%clk 0:12:46.6] } 27... Qxe1+ { [%clk 0:13:21.3] } 28. Qf1 { [%clk 0:12:52.6] } 28... Qxf1+ { [%clk 0:13:19.1] } 29. Kxf1 { [%clk 0:12:59.7] } 29... Ne4 { [%clk 0:12:46] } 30. Be3 { [%clk 0:12:42.6] } 30... a5 { [%clk 0:12:39.6] } 31. Ke2 { [%clk 0:12:48.8] } 31... f5 { [%clk 0:12:38.1] } 32. Kd3 { [%clk 0:12:24.9] } 32... a4 { [%clk 0:12:24.5] } 33. Kc2 { [%clk 0:12:28.2] } 33... Bf8 { [%clk 0:12:19.2] } 34. Kb1 { [%clk 0:11:05.8] } 34... Kf7 { [%clk 0:12:17.4] } 35. Ka2 { [%clk 0:10:22.6] } 35... Ke6 { [%clk 0:12:18.1] } 36. Bb6 { [%clk 0:09:28] } 36... Kd7 { [%clk 0:12:00.5] } 37. Ba5 { [%clk 0:09:21.3] } 37... Kc6 { [%clk 0:11:58.6] } 38. Kb2 { [%clk 0:08:19.6] } 38... b5 { [%clk 0:10:05.3] } 39. cxb5+ { [%clk 0:08:14.3] } 39... Kxb5 { [%clk 0:10:07.7] } 40. Bc7 { [%clk 0:08:05.1] } 40... Kc4 { [%clk 0:09:46.1] } 41. Kc2 { [%clk 0:07:30.7] } 41... a3 { [%clk 0:09:43.5] } 42. Be5 { [%clk 0:07:24.8] } 42... Be7 { [%clk 0:09:30.2] } 43. Kb1 { [%clk 0:07:12.3] } 43... Kb3 { [%clk 0:09:36.1] } 44. Bg7 { [%clk 0:06:57.8] } 44... h5 { [%clk 0:09:41.8] } 45. Be5 { [%clk 0:06:56.9] } 45... Bf6 { [%clk 0:09:48.8] } 46. Bxf6 { [%clk 0:06:47.8] } 46... Nxf6 { [%clk 0:09:58.7] } 47. g3 { [%clk 0:06:43.7] } 47... g5 { [%clk 0:09:57.2] } 48. h3 { [%clk 0:06:28.2] } 48... Ne4 { [%clk 0:10:03.8] } 49. g4 { [%clk 0:06:33.2] } 49... fxg4 { [%clk 0:10:11.4] } 50. hxg4 { [%clk 0:06:39.1] } 50... hxg4 { [%clk 0:10:19.2] } 51. Ka1 { [%clk 0:06:38.6] } 51... g3 { [%clk 0:10:27] } 52. Kb1 { [%clk 0:06:46.2] } 52... g2 { [%clk 0:10:34.9] } 53. Kc1 { [%clk 0:06:42.7] } 53... g1=Q# { [%clk 0:10:42.4] } 0-1

[Event "Live Chess"]
[Site "Chess.com"]
[Date "2021.02.28"]
[Round "-"]
[White "Lukhi, Neev"]
[Black "Kerray, Bill"]
[Result "1-0"]
[BlackElo "1045"]
[CurrentPosition "3r4/4B3/P4k1p/3p1pp1/1P1P4/3b1P2/6PP/R3R1K1 b - -"]
[ECO "D00"]
[ECOUrl "https://www.chess.com/openings/Queens-Pawn-Opening-Accelerated-London-System"]
[EndDate "2021.02.28"]
[EndTime "14:58:16"]
[Link "https://www.chess.com/live/game/8261102387"]
[StartTime "14:24:03"]
[Termination "StPatKid won by resignation"]
[TimeControl "1500+10"]
[Timezone "UTC"]
[UTCDate "2021.02.28"]
[UTCTime "14:24:03"]
[WhiteElo "1382"]

1. d4 { [%clk 0:25:10] } 1... d5 { [%clk 0:25:10] } 2. Bf4 { [%clk 0:25:16.2] } 2... Nf6 { [%clk 0:25:09.4] } 3. Nf3 { [%clk 0:25:17.9] } 3... Nc6 { [%clk 0:25:13.8] } 4. e3 { [%clk 0:25:22.9] } 4... Bf5 { [%clk 0:25:11.4] } 5. c3 { [%clk 0:25:04.8] } 5... e6 { [%clk 0:25:09] } 6. Nbd2 { [%clk 0:24:55.4] } 6... Bd6 { [%clk 0:25:13.7] } 7. Bg3 { [%clk 0:25:03.2] } 7... h6 { [%clk 0:25:09.2] } 8. Qb3 { [%clk 0:24:29.7] } 8... Na5 { [%clk 0:24:41.8] } 9. Qa4+ { [%clk 0:24:28.1] } 9... Nc6 { [%clk 0:24:44.6] } 10. Bb5 { [%clk 0:24:18.5] } 10... Qd7 { [%clk 0:23:56.3] } 11. Ne5 { [%clk 0:24:09.9] } 11... Bxe5 { [%clk 0:23:45.7] } 12. Bxe5 { [%clk 0:24:17] } 12... a6 { [%clk 0:23:34.1] } 13. Nb3 { [%clk 0:23:30.1] } 13... O-O { [%clk 0:23:05.2] } 14. Bxc6 { [%clk 0:23:20.5] } 14... Qxc6 { [%clk 0:22:27.5] } 15. Qxc6 { [%clk 0:23:21.4] } 15... bxc6 { [%clk 0:22:34.1] } 16. Bxc7 { [%clk 0:23:29.3] } 16... Bd3 { [%clk 0:22:03.5] } 17. Nc5 { [%clk 0:23:19.8] } 17... Bg6 { [%clk 0:21:47.2] } 18. O-O { [%clk 0:23:23.2] } 18... Ra7 { [%clk 0:21:32.9] } 19. Be5 { [%clk 0:22:51.1] } 19... Nd7 { [%clk 0:20:45.2] } 20. Nb3 { [%clk 0:22:15.5] } 20... a5 { [%clk 0:20:22] } 21. Bd6 { [%clk 0:22:11.9] } 21... Re8 { [%clk 0:20:15.6] } 22. Nc5 { [%clk 0:21:48.9] } 22... Nb6 { [%clk 0:19:52.3] } 23. b3 { [%clk 0:21:24.5] } 23... Nd7 { [%clk 0:18:48.8] } 24. b4 { [%clk 0:20:45.3] } 24... e5 { [%clk 0:17:41.7] } 25. Nxd7 { [%clk 0:20:27.6] } 25... Rxd7 { [%clk 0:17:43.9] } 26. Bxe5 { [%clk 0:20:31.7] } 26... axb4 { [%clk 0:17:33.8] } 27. cxb4 { [%clk 0:20:35.7] } 27... Bd3 { [%clk 0:17:31] } 28. Rfd1 { [%clk 0:20:38.5] } 28... Bc4 { [%clk 0:17:35.6] } 29. a4 { [%clk 0:20:44] } 29... Ra8 { [%clk 0:17:27.8] } 30. Rdc1 { [%clk 0:20:30.9] } 30... Rb7 { [%clk 0:17:26.6] } 31. Bd6 { [%clk 0:20:25.3] } 31... Rba7 { [%clk 0:15:45.1] } 32. a5 { [%clk 0:20:21.4] } 32... Bb5 { [%clk 0:15:48.8] } 33. Re1 { [%clk 0:19:21.8] } 33... Re8 { [%clk 0:15:37.2] } 34. f3 { [%clk 0:19:05.4] } 34... f5 { [%clk 0:15:39.6] } 35. Be5 { [%clk 0:18:56.7] } 35... Kf7 { [%clk 0:15:14.6] } 36. e4 { [%clk 0:19:01.1] } 36... Bd3 { [%clk 0:14:22.9] } 37. exd5 { [%clk 0:18:54.2] } 37... cxd5 { [%clk 0:14:22.8] } 38. Bd6 { [%clk 0:18:28.4] } 38... Rd8 { [%clk 0:14:01.4] } 39. Bc5 { [%clk 0:18:30.6] } 39... Kf6 { [%clk 0:12:12.2] } 40. Bxa7 { [%clk 0:18:30.5] } 40... Rd7 { [%clk 0:11:49] } 41. Bc5 { [%clk 0:18:32] } 41... g5 { [%clk 0:11:44.2] } 42. a6 { [%clk 0:18:37.6] } 42... Rd8 { [%clk 0:11:47.5] } 43. Be7+ { [%clk 0:18:43.5] } 1-0

[Event "Live Chess"]
[Site "Chess.com"]
[Date "2021.02.28"]
[Round "-"]
[White "Dowle, Chris"]
[Black "Benson, Alice"]
[Result "1-0"]
[BlackElo "1206"]
[CurrentPosition "r3r2R/pb3pk1/2p1n2Q/1p2P3/6P1/P3PP2/1Bq1B1K1/7R b - -"]
[ECO "E51"]
[ECOUrl "https://www.chess.com/openings/Nimzo-Indian-Defense-Ragozin-Deferred-Samisch-Variation"]
[EndDate "2021.02.28"]
[EndTime "15:19:29"]
[Link "https://www.chess.com/live/game/8261060373"]
[StartTime "14:21:33"]
[Termination "jacksnipe won by checkmate"]
[TimeControl "1500+10"]
[Timezone "UTC"]
[UTCDate "2021.02.28"]
[UTCTime "14:21:33"]
[WhiteElo "1240"]

1. d4 { [%clk 0:25:10] } 1... Nf6 { [%clk 0:25:10] } 2. c4 { [%clk 0:25:17.2] } 2... e6 { [%clk 0:25:17] } 3. Nc3 { [%clk 0:25:24.8] } 3... Bb4 { [%clk 0:25:24.5] } 4. e3 { [%clk 0:25:29.9] } 4... O-O { [%clk 0:23:57.3] } 5. Nf3 { [%clk 0:25:32.9] } 5... d5 { [%clk 0:23:30.5] } 6. a3 { [%clk 0:25:35.7] } 6... Bxc3+ { [%clk 0:23:16.1] } 7. bxc3 { [%clk 0:25:43.3] } 7... c6 { [%clk 0:22:23.3] } 8. Bd3 { [%clk 0:25:49.4] } 8... Nbd7 { [%clk 0:22:19.1] } 9. O-O { [%clk 0:25:55.4] } 9... Re8 { [%clk 0:22:15.4] } 10. cxd5 { [%clk 0:25:49] } 10... exd5 { [%clk 0:22:11.6] } 11. Qc2 { [%clk 0:25:16.9] } 11... Ne4 { [%clk 0:21:01] } 12. c4 { [%clk 0:24:37.5] } 12... Ndf6 { [%clk 0:19:03.9] } 13. Ne5 { [%clk 0:22:50.2] } 13... h6 { [%clk 0:14:34.2] } 14. f3 { [%clk 0:21:38.3] } 14... Ng5 { [%clk 0:14:16.4] } 15. h4 { [%clk 0:20:04.1] } 15... dxc4 { [%clk 0:13:00.5] } 16. Bxc4 { [%clk 0:18:37.4] } 16... Ne6 { [%clk 0:12:21.2] } 17. Bb2 { [%clk 0:15:02.8] } 17... Nh5 { [%clk 0:09:45.4] } 18. Qf2 { [%clk 0:11:48.2] } 18... Qe7 { [%clk 0:06:52.1] } 19. g4 { [%clk 0:08:31.1] } 19... Nf6 { [%clk 0:06:22.8] } 20. Rae1 { [%clk 0:06:33.4] } 20... g5 { [%clk 0:03:53] } 21. Kg2 { [%clk 0:03:43.2] } 21... Nd7 { [%clk 0:03:06.4] } 22. hxg5 { [%clk 0:02:32.6] } 22... Nxe5 { [%clk 0:02:01] } 23. dxe5 { [%clk 0:02:07.8] } 23... Qxg5 { [%clk 0:01:53.4] } 24. Rh1 { [%clk 0:02:06.6] } 24... b5 { [%clk 0:01:30.5] } 25. Be2 { [%clk 0:02:02.4] } 25... Bb7 { [%clk 0:00:55.4] } 26. Rh5 { [%clk 0:02:09.1] } 26... Qg6 { [%clk 0:00:50.9] } 27. Reh1 { [%clk 0:02:11.9] } 27... Kh7 { [%clk 0:00:49.4] } 28. Qh4 { [%clk 0:01:54.2] } 28... Kg7 { [%clk 0:00:33.2] } 29. Rxh6 { [%clk 0:02:01.4] } 29... Qc2 { [%clk 0:00:41.5] } 30. Rh7+ { [%clk 0:02:06.3] } 30... Kf8 { [%clk 0:00:38.4] } 31. Rh8+ { [%clk 0:02:14.3] } 31... Kg7 { [%clk 0:00:40.8] } 32. Qh6# { [%clk 0:02:09.2] } 1-0

[Event "Live Chess"]
[Site "Chess.com"]
[Date "2021.02.28"]
[Round "-"]
[White "Harley, Trevor"]
[Black "Shankar, Yashwardhan"]
[Result "1-0"]
[BlackElo "985"]
[CurrentPosition "8/2Q3p1/7p/2k5/ppPb4/7P/PP3PP1/4R1K1 b - -"]
[ECO "C64"]
[ECOUrl "https://www.chess.com/openings/Ruy-Lopez-Opening-Classical-Central-Variation"]
[EndDate "2021.02.28"]
[EndTime "11:43:21"]
[Link "https://www.chess.com/live/game/8249713113"]
[StartTime "11:16:30"]
[Termination "Lyrurus won by checkmate"]
[TimeControl "1500+10"]
[Timezone "UTC"]
[UTCDate "2021.02.28"]
[UTCTime "11:16:30"]
[WhiteElo "1439"]

1. e4 { [%clk 0:25:10] } 1... e5 { [%clk 0:25:10] } 2. Nf3 { [%clk 0:25:16.7] } 2... Nc6 { [%clk 0:25:15.7] } 3. Bb5 { [%clk 0:25:21.6] } 3... Bc5 { [%clk 0:25:22.6] } 4. c3 { [%clk 0:25:06.5] } 4... a6 { [%clk 0:25:26.4] } 5. Ba4 { [%clk 0:25:13.3] } 5... b5 { [%clk 0:25:33.8] } 6. Bb3 { [%clk 0:25:17.5] } 6... Nf6 { [%clk 0:25:21.6] } 7. d3 { [%clk 0:24:07.4] } 7... h6 { [%clk 0:25:21] } 8. O-O { [%clk 0:23:56.1] } 8... O-O { [%clk 0:25:27.1] } 9. Nbd2 { [%clk 0:23:43.3] } 9... d6 { [%clk 0:25:26.3] } 10. h3 { [%clk 0:23:44] } 10... a5 { [%clk 0:25:23.3] } 11. Re1 { [%clk 0:22:25.3] } 11... a4 { [%clk 0:25:24.9] } 12. Bc2 { [%clk 0:22:17.9] } 12... d5 { [%clk 0:25:22.4] } 13. exd5 { [%clk 0:22:02.9] } 13... Nxd5 { [%clk 0:25:27.8] } 14. Nxe5 { [%clk 0:21:48.5] } 14... Nxe5 { [%clk 0:25:22.8] } 15. Rxe5 { [%clk 0:21:52.2] } 15... f6 { [%clk 0:25:21.7] } 16. Re1 { [%clk 0:21:37] } 16... Bf5 { [%clk 0:25:11.2] } 17. d4 { [%clk 0:20:37.5] } 17... Bxc2 { [%clk 0:25:09.2] } 18. Qxc2 { [%clk 0:20:44.7] } 18... Bb6 { [%clk 0:25:06] } 19. Nf3 { [%clk 0:20:18.8] } 19... Rc8 { [%clk 0:25:06] } 20. Qg6 { [%clk 0:18:45.6] } 20... Rf7 { [%clk 0:24:22.8] } 21. Nh4 { [%clk 0:17:34.8] } 21... f5 { [%clk 0:24:10.6] } 22. Nxf5 { [%clk 0:16:43.6] } 22... Kf8 { [%clk 0:23:45.2] } 23. Qh7 { [%clk 0:15:47.3] } 23... Rxf5 { [%clk 0:23:01.9] } 24. Qxf5+ { [%clk 0:15:25.2] } 24... Nf6 { [%clk 0:22:56.9] } 25. Bf4 { [%clk 0:14:44.2] } 25... b4 { [%clk 0:22:44.7] } 26. Be5 { [%clk 0:14:29] } 26... Kf7 { [%clk 0:20:41.1] } 27. Bxf6 { [%clk 0:14:27] } 27... Qxf6 { [%clk 0:20:36.9] } 28. Qxc8 { [%clk 0:14:24.6] } 28... Qe7 { [%clk 0:19:33.9] } 29. Rxe7+ { [%clk 0:14:27.6] } 29... Kxe7 { [%clk 0:19:41.5] } 30. Re1+ { [%clk 0:14:29.3] } 30... Kd6 { [%clk 0:19:44.1] } 31. c4 { [%clk 0:14:17.7] } 31... Bxd4 { [%clk 0:19:45.7] } 32. Qd8+ { [%clk 0:14:20.6] } 32... Kc5 { [%clk 0:19:52.4] } 33. Qxc7# { [%clk 0:14:23.4] } 1-0

[Event "Live Chess"]
[Site "Chess.com"]
[Date "2021.02.28"]
[Round "-"]
[White "Ghatkar, Aaratrika"]
[Black "Bobak, Cosmo"]
[Result "0-1"]
[BlackElo "1323"]
[CurrentPosition "8/q7/8/K1k5/8/8/8/8 w - -"]
[ECO "C26"]
[ECOUrl "https://www.chess.com/openings/Vienna-Game-Falkbeer-Stanley-Variation"]
[EndDate "2021.02.28"]
[EndTime "11:45:43"]
[Link "https://www.chess.com/live/game/8249073411"]
[StartTime "11:03:27"]
[Termination "chaeronanaut won by checkmate"]
[TimeControl "1500+10"]
[Timezone "UTC"]
[UTCDate "2021.02.28"]
[UTCTime "11:03:27"]
[WhiteElo "912"]

1. e4 { [%clk 0:25:10] } 1... e5 { [%clk 0:25:10] } 2. Bc4 { [%clk 0:25:17.4] } 2... Nf6 { [%clk 0:25:16.4] } 3. Nc3 { [%clk 0:25:24.8] } 3... Bc5 { [%clk 0:25:20.6] } 4. d3 { [%clk 0:25:31.1] } 4... Nc6 { [%clk 0:25:21.5] } 5. Nf3 { [%clk 0:25:38.6] } 5... O-O { [%clk 0:25:17.1] } 6. O-O { [%clk 0:25:44.7] } 6... d6 { [%clk 0:25:20] } 7. Nh4 { [%clk 0:25:45.4] } 7... Be6 { [%clk 0:24:51.2] } 8. Bxe6 { [%clk 0:25:46.2] } 8... fxe6 { [%clk 0:24:57.9] } 9. Qf3 { [%clk 0:25:52.5] } 9... d5 { [%clk 0:24:41.4] } 10. Qg3 { [%clk 0:25:53.7] } 10... d4 { [%clk 0:24:16.5] } 11. Nb5 { [%clk 0:25:47.3] } 11... a6 { [%clk 0:24:23.2] } 12. Na3 { [%clk 0:25:51.4] } 12... Qe7 { [%clk 0:23:07.9] } 13. Nc4 { [%clk 0:25:26.4] } 13... Bd6 { [%clk 0:22:49.2] } 14. Bh6 { [%clk 0:25:21.2] } 14... Rf7 { [%clk 0:22:37.8] } 15. Nxd6 { [%clk 0:25:22.7] } 15... Qxd6 { [%clk 0:22:42.5] } 16. c3 { [%clk 0:25:13.7] } 16... Kh8 { [%clk 0:22:04.2] } 17. Bg5 { [%clk 0:24:57.9] } 17... h6 { [%clk 0:21:45.9] } 18. Ng6+ { [%clk 0:23:40.6] } 18... Kh7 { [%clk 0:20:42.4] } 19. Bxf6 { [%clk 0:23:33.5] } 19... gxf6 { [%clk 0:20:15.7] } 20. Nh4 { [%clk 0:22:58.9] } 20... Rg8 { [%clk 0:19:42.1] } 21. Qf3 { [%clk 0:22:43.2] } 21... Qf8 { [%clk 0:18:22.5] } 22. cxd4 { [%clk 0:22:41.3] } 22... Nxd4 { [%clk 0:18:04.5] } 23. Qd1 { [%clk 0:22:20.3] } 23... f5 { [%clk 0:17:51.8] } 24. exf5 { [%clk 0:21:42.4] } 24... Nxf5 { [%clk 0:17:28.5] } 25. Qh5 { [%clk 0:21:21.4] } 25... Rg5 { [%clk 0:16:19.3] } 26. Qe2 { [%clk 0:21:05.6] } 26... Nxh4 { [%clk 0:16:05.6] } 27. Qe4+ { [%clk 0:20:40.9] } 27... Nf5 { [%clk 0:16:06] } 28. Rfe1 { [%clk 0:20:36.9] } 28... Qg7 { [%clk 0:15:25.3] } 29. Rad1 { [%clk 0:19:16] } 29... Rg4 { [%clk 0:14:35.7] } 30. Qxb7 { [%clk 0:18:14.2] } 30... a5 { [%clk 0:13:00.4] } 31. d4 { [%clk 0:17:52.2] } 31... e4 { [%clk 0:12:10.9] } 32. Rxe4 { [%clk 0:16:21.4] } 32... Rxg2+ { [%clk 0:11:51.9] } 33. Kf1 { [%clk 0:16:23.6] } 33... Rg1+ { [%clk 0:11:53.7] } 34. Ke2 { [%clk 0:16:20] } 34... Rxd1 { [%clk 0:12:00.5] } 35. Kxd1 { [%clk 0:16:27.6] } 35... Nd6 { [%clk 0:12:06.3] } 36. Qc6 { [%clk 0:15:54] } 36... Nxe4 { [%clk 0:12:05.5] } 37. Qxe4+ { [%clk 0:16:01] } 37... Kg8 { [%clk 0:11:06.5] } 38. Qxe6 { [%clk 0:15:59.3] } 38... Qg1+ { [%clk 0:10:21.5] } 39. Ke2 { [%clk 0:15:58.7] } 39... Qxf2+ { [%clk 0:10:23.4] } 40. Kd3 { [%clk 0:15:53.7] } 40... Qxh2 { [%clk 0:10:05.1] } 41. a3 { [%clk 0:15:24.8] } 41... Qd6 { [%clk 0:09:57.4] } 42. Qxd6 { [%clk 0:15:20.6] } 42... cxd6 { [%clk 0:10:06.4] } 43. b4 { [%clk 0:15:24.8] } 43... axb4 { [%clk 0:10:09.2] } 44. axb4 { [%clk 0:15:32.1] } 44... h5 { [%clk 0:10:16.6] } 45. b5 { [%clk 0:15:39.7] } 45... h4 { [%clk 0:10:25.4] } 46. Kc4 { [%clk 0:15:47.7] } 46... Rc7+ { [%clk 0:10:16.9] } 47. Kd5 { [%clk 0:15:50.7] } 47... h3 { [%clk 0:10:07.6] } 48. b6 { [%clk 0:15:55.5] } 48... Rb7 { [%clk 0:10:16.2] } 49. Kc6 { [%clk 0:16:01.2] } 49... Rxb6+ { [%clk 0:10:21.5] } 50. Kxb6 { [%clk 0:16:09] } 50... h2 { [%clk 0:10:31.4] } 51. Kc6 { [%clk 0:16:11.6] } 51... h1=Q+ { [%clk 0:10:38.6] } 52. Kxd6 { [%clk 0:16:19.8] } 52... Kf8 { [%clk 0:10:45.1] } 53. Kc5 { [%clk 0:16:26.7] } 53... Ke7 { [%clk 0:10:53.9] } 54. d5 { [%clk 0:16:35.1] } 54... Kd7 { [%clk 0:11:02.9] } 55. Kd4 { [%clk 0:16:29.4] } 55... Kd6 { [%clk 0:11:09] } 56. Kc3 { [%clk 0:16:29.1] } 56... Qxd5 { [%clk 0:11:18.9] } 57. Kb4 { [%clk 0:16:36.2] } 57... Qc5+ { [%clk 0:11:25.1] } 58. Kb3 { [%clk 0:16:44.1] } 58... Kd5 { [%clk 0:11:31.6] } 59. Kb2 { [%clk 0:16:49.3] } 59... Kd4 { [%clk 0:11:40.9] } 60. Kb3 { [%clk 0:16:56.8] } 60... Qc8 { [%clk 0:11:47.8] } 61. Kb4 { [%clk 0:17:03.3] } 61... Qb8+ { [%clk 0:11:56.1] } 62. Ka5 { [%clk 0:17:09.7] } 62... Kc5 { [%clk 0:12:04.7] } 63. Ka4 { [%clk 0:17:12] } 63... Qb7 { [%clk 0:12:08.5] } 64. Ka5 { [%clk 0:17:18.9] } 64... Qa7# { [%clk 0:12:17.3] } 0-1